bitfinex-derivatives/quotes_ETHF0:USTF0_20251028
["timestamp","ask_amount","ask_price","bid_price","bid_amount"]
[1761637137006,0.00238384,4120.7,4120.6,1.19212594]
[1761637137707,0.00238384,4120.7,4120.6,0.75527594]
[1761637140602,0.00238384,4120.7,4120.6,1.19213594]
[1761637140805,0.2477,4121.7,4121.6,0.334]
[1761637140997,1.2302974,4121.7,4121.6,0.5438]
[1761637141197,0.9825974,4121.7,4121.6,0.7522]
[1761637141401,0.5316974,4121.7,4121.6,0.7522]
[1761637141598,0.4509,4121.7,4121.6,0.7522]
[1761637141908,0.45295286,4121.7,4121.6,0.7522]
[1761637143409,0.70065286,4121.7,4121.6,0.5438]
[1761637143906,0.45295286,4121.7,4121.6,0.7522]
[1761637144108,0.00205286,4121.7,4121.6,0.7522]
[1761637145004,1.70967866,4122.6,4122.2,0.3367]
[1761637145204,1.70967866,4122.6,4122.5,0.7002]
[1761637145205,1.68587866,4122.6,4122.5,0.7002]
[1761637145405,43.01753847,4122.6,4122.5,0.7002]
[1761637145905,43.02043498,4122.6,4122.5,0.7002]
[1761637147208,43.02043498,4122.6,4122.5,0.9111]
[1761637148903,41.33455632,4122.6,4122.5,0.9111]
[1761637149112,0.00289651,4122.6,4122.5,0.9111]
[1761637150308,0.23379651,4122.6,4122.5,0.9111]
[1761637150513,0.44869651,4122.6,4122.5,0.9111]
[1761637151914,1.48493832,4122.6,4122.5,0.9111]
[1761637155007,1.48493832,4122.6,4122.1,0.3418]
[1761637155216,1.48204181,4122.2,4122.1,0.7944]
[1761637157613,1.72964181,4122.2,4122.1,0.7944]
[1761637157812,0.6934,4121.8,4121.7,0.3418]
[1761637158021,1.72964181,4121.8,4121.7,0.3418]
[1761637158208,1.72964181,4121.8,4121.7,0.5658]
[1761637159724,1.26714181,4121.8,4121.7,0.7944]
[1761637160622,0.2309,4121.8,4121.7,0.7944]
[1761637161216,0.2309,4122.1,4122.0,0.92]
[1761637162122,0.2309,4122.3,4122.2,0.7944]
[1761637163423,1.26714181,4122.5,4122.4,0.7944]
[1761637164122,0.00289651,4122.6,4122.5,0.92]
[1761637164513,0.53459508,4122.6,4122.5,0.92]
[1761637164718,0.76549508,4122.6,4122.5,0.92]
[1761637164914,1.22799508,4122.6,4122.5,0.3418]
[1761637165219,0.2309,4122.5,4122.1,0.4526]
[1761637165420,1.03624181,4122.4,4122.1,0.4526]
[1761637165618,0.23379651,4122.6,4122.5,0.92]
[1761637171233,0.00289651,4122.6,4122.5,1.35665]
[1761637171526,1.26714181,4123.3,4123.2,0.7944]
[1761637171732,1.79932218,4123.3,4123.2,0.7944]
[1761637172329,1.80239249,4123.3,4123.2,0.7944]
[1761637172530,2.01729249,4123.3,4123.2,0.7944]
[1761637172731,43.06489249,4123.3,4123.2,0.7944]
[1761637173031,42.81729249,4123.3,4123.2,0.7944]
[1761637175937,42.28511212,4123.3,4123.2,0.7944]
[1761637176232,40.80307031,4123.3,4123.2,0.7944]
[1761637176433,0.00307031,4123.3,4123.2,0.7944]
[1761637176737,0.00307031,4123.3,4123.2,1.23098]
[1761637177230,0.00307031,4123.3,4123.2,0.7944]
[1761637177431,0.00307031,4123.3,4123.2,1.23098]
[1761637191853,0.00307031,4123.3,4123.2,2.26722181]
[1761637194255,0.00307031,4123.3,4123.2,3.56960266]
[1761637196966,0.00307031,4123.3,4123.2,2.26722181]
[1761637198162,0.00307031,4123.3,4123.2,3.56582547]
[1761637198358,0.00307031,4123.3,4123.2,2.52958366]
[1761637198664,0.67227031,4123.3,4123.2,0.5658]
[1761637199171,0.42477031,4123.3,4123.2,1.21248]
[1761637199471,0.21307031,4123.3,4123.2,1.21248]
[1761637199967,0.21307031,4123.3,4123.2,0.7759]
[1761637200362,0.00307031,4123.3,4123.2,1.21248]
[1761637200558,0.00307031,4123.3,4123.2,0.7759]
[1761637200759,0.00307031,4123.3,4123.2,1.21248]
[1761637202370,0.00307031,4123.3,4123.2,2.51108366]
[1761637204073,0.00307031,4123.3,4123.2,1.21248]
[1761637204270,1.24464181,4124.2,4124.1,0.7609]
[1761637204469,0.87034596,4124.8,4124.4,0.7609]
[1761637204470,0.2084,4124.5,4124.4,0.7609]
[1761637204674,0.7393199,4124.5,4124.4,0.7609]
[1761637204875,41.5393199,4124.5,4124.4,0.7609]
[1761637205376,41.54186314,4124.5,4124.4,0.76288928]
[1761637205873,42.82550495,4124.5,4124.4,0.76288928]
[1761637206766,42.57810495,4124.5,4124.4,0.76288928]
[1761637206972,42.82560495,4124.5,4124.4,0.33148928]
[1761637207172,42.82560495,4124.5,4124.4,0.55738928]
[1761637207475,41.33346314,4124.5,4124.4,0.78168928]
[1761637207872,40.80254324,4124.5,4124.4,0.78168928]
[1761637209566,0.00254324,4124.5,4124.4,1.21813928]
[1761637215983,0.00254324,4124.5,4124.4,2.51872624]
[1761637218381,0.00254324,4124.5,4124.4,1.21813928]
[1761637218582,1.68687247,4125.5,4125.4,0.7831]
[1761637219182,42.48687247,4125.5,4125.4,0.7831]
[1761637219584,42.48964576,4125.5,4125.4,0.7831]
[1761637223585,42.73714576,4125.5,4125.4,0.7831]
[1761637223787,42.73714576,4125.5,4125.4,0.5588]
[1761637224078,42.73714576,4125.5,4125.4,0.3329]
[1761637227585,42.48964576,4125.5,4125.4,0.7831]
[1761637227790,41.24757329,4125.5,4125.4,0.7831]
[1761637228191,41.49507329,4125.5,4125.4,0.7831]
[1761637228391,41.24757329,4125.5,4125.4,0.7831]
[1761637228593,0.4448,4125.3,4125.2,0.7831]
[1761637228891,0.4448,4125.3,4125.2,1.21947]
[1761637230388,0.4448,4125.3,4125.2,0.7831]
[1761637230684,0.6923,4125.3,4125.2,0.7831]
[1761637231489,0.4448,4125.3,4125.0,0.3329]
[1761637231692,0.6923,4124.9,4124.8,0.3329]
[1761637231993,0.6923,4124.7,4124.6,0.3329]
[1761637232381,1.93437247,4124.7,4124.6,0.3329]
[1761637232787,0.6923,4124.7,4124.6,0.3329]
[1761637233596,0.6923,4124.7,4124.6,0.5588]
[1761637236498,0.6923,4124.7,4124.6,0.3329]
[1761637236698,0.2241,4124.5,4124.4,0.33068928]
[1761637237002,0.6974,4124.5,4124.4,0.33068928]
[1761637237297,41.4974,4124.5,4124.4,0.00198928]
[1761637237497,41.4974,4124.5,4124.4,0.33068928]
[1761637237899,0.6974,4124.5,4124.4,0.33068928]
[1761637239790,1.93947247,4124.5,4124.4,0.33068928]
[1761637239996,2.53184897,4124.5,4124.4,0.00198928]
[1761637240498,42.0897765,4124.5,4124.4,0.00198928]
[1761637245809,42.0897765,4124.5,4123.7,0.3287]
[1761637246011,0.6974,4123.8,4123.7,0.3287]
[1761637247016,0.6974,4123.8,4123.7,0.33044016]
[1761637249203,0.6974,4123.8,4123.7,0.55854016]
[1761637251812,0.4502,4123.8,4123.7,0.77954016]
[1761637256910,0.6974,4123.8,4123.7,0.77954016]
[1761637258812,0.4502,4123.8,4123.7,0.77954016]
[1761637259922,0.6974,4123.8,4123.7,0.00174016]
[1761637260123,1.22672466,4123.8,4123.7,0.00174016]
[1761637260522,42.02672466,4123.8,4123.7,0.00174016]
[1761637262920,42.89707062,4123.8,4123.7,0.00174016]
[1761637263119,42.02672466,4123.8,4123.7,0.00174016]
[1761637266840,50.02672466,4123.8,4123.7,0.00174016]
[1761637269229,50.02672466,4123.8,4123.3,0.345]
[1761637269530,0.6784,4123.2,4123.1,0.345]
[1761637269734,0.2472,4122.5,4122.0,0.3559]
[1761637269930,1.92047247,4122.1,4122.0,0.3559]
[1761637270239,1.92047247,4122.1,4121.5,0.9205]
[1761637270240,0.2125,4121.6,4121.5,0.9205]
[1761637270533,0.2125,4121.6,4121.5,0.92243464]
[1761637270733,0.4312,4121.6,4121.5,0.92243464]
[1761637271934,0.6784,4121.6,4121.5,0.34693464]
[1761637272130,0.6784,4121.6,4121.5,0.00193464]
[1761637272331,0.6784,4121.6,4121.5,0.34693464]
[1761637272834,0.6784,4121.6,4121.5,0.69543464]
[1761637273638,0.6784,4121.6,4121.5,0.59855984]
[1761637273841,1.71525779,4121.6,4121.5,0.59855984]
[1761637274139,1.71525779,4121.6,4121.5,0.47135984]
[1761637274439,1.71525779,4121.6,4121.5,0.25005984]
[1761637274638,1.71525779,4121.6,4121.5,0.2523154]
[1761637276348,1.71525779,4121.6,4121.5,0.4736154]
[1761637278043,1.71525779,4121.6,4121.5,0.8204154]
[1761637283148,1.46805779,4121.6,4121.5,0.8204154]
[1761637284038,1.81015779,4121.6,4121.5,0.8204154]
[1761637286940,0.7733,4122.0,4121.9,0.4409]
[1761637287144,1.46805779,4122.0,4121.9,0.7859]
[1761637288149,1.81015779,4122.0,4121.9,0.7859]
[1761637288552,2.84701558,4122.0,4121.9,0.345]
[1761637288847,0.3421,4121.9,4121.6,0.345]
[1761637289149,1.81015779,4121.7,4121.6,0.5663]
[1761637290241,1.46805779,4121.7,4121.6,0.7859]
[1761637290840,0.2125,4122.0,4121.7,0.345]
[1761637291041,41.83871475,4122.1,4122.0,0.9131]
[1761637292258,40.80185696,4122.1,4122.0,0.9131]
[1761637292445,0.00185696,4122.1,4122.0,0.9131]
[1761637292845,0.3421,4122.9,4122.8,0.4409]
[1761637292846,1.03685779,4122.9,4122.8,0.4409]
[1761637293150,1.24935779,4122.9,4122.8,0.7859]
[1761637293747,1.03685779,4122.9,4122.8,0.7859]
[1761637294055,0.00289477,4122.9,4122.8,0.7859]
[1761637294848,0.43749477,4122.9,4122.8,0.7859]
[1761637295548,1.47435256,4122.9,4122.8,0.7859]
[1761637298845,1.47435256,4122.9,4122.1,0.3445]
[1761637298846,0.313,4122.8,4122.1,0.3445]
[1761637299050,1.78445779,4122.2,4122.1,0.3445]
[1761637299252,1.78445779,4122.2,4122.1,0.7848]
[1761637299253,1.47145779,4122.2,4122.1,0.7848]
[1761637299451,42.27145779,4122.2,4122.1,0.7848]
[1761637299649,1.47145779,4122.2,4122.1,0.7848]
[1761637300254,1.78445779,4122.2,4122.1,0.7848]
[1761637301052,1.78445779,4122.2,4122.1,0.5543]
[1761637301755,1.78445779,4122.2,4122.1,0.7848]
[1761637302154,1.47145779,4122.2,4122.1,0.7848]
[1761637304748,1.03685779,4122.2,4122.1,0.7848]
[1761637306558,0.22189477,4122.9,4122.8,0.7848]
[1761637306858,1.25875256,4122.9,4122.8,0.7848]
[1761637307269,1.78735256,4122.9,4122.8,0.7848]
[1761637307754,1.47435256,4122.9,4122.8,0.7848]
[1761637311859,1.78735256,4122.9,4122.8,0.7848]
[1761637312056,1.78735256,4122.9,4122.8,0.3445]
[1761637312258,1.78735256,4122.9,4122.8,0.5543]
[1761637319358,1.78735256,4122.9,4122.1,1.30058696]
[1761637319359,0.313,4122.2,4122.1,1.30058696]
[1761637319558,0.497,4122.0,4121.5,0.00225556]
[1761637319759,0.7476,4121.6,4121.5,0.00225556]
[1761637320366,1.28639151,4121.6,4121.5,0.00225556]
[1761637320870,0.7476,4121.6,4121.5,0.00225556]
[1761637321368,0.7476,4121.6,4121.5,0.34675556]
[1761637322067,1.28624361,4121.6,4121.5,0.00225556]
[1761637323364,0.7476,4121.6,4121.5,0.00225556]
[1761637324064,41.5476,4121.6,4121.5,0.55655556]
[1761637324259,41.2346,4121.6,4121.5,0.91565556]
[1761637324459,42.27145779,4121.6,4121.5,0.91565556]
[1761637325065,42.59235779,4121.6,4121.5,0.91565556]
[1761637326969,42.59235779,4121.6,4121.5,0.55655556]
[1761637327369,42.59235779,4121.6,4121.5,0.34675556]
[1761637328766,42.59235779,4121.6,4121.5,0.55685556]
[1761637330061,42.59235779,4121.6,4121.5,0.00225556]
[1761637330268,42.59235779,4121.6,4121.5,0.34185556]
[1761637331263,42.59235779,4121.6,4121.5,0.68315556]
[1761637333667,41.5555,4121.6,4121.5,0.62503068]
[1761637334379,0.7435,4121.1,4121.0,0.3373]
[1761637334570,0.7435,4121.1,4121.0,0.3398967]
[1761637335076,0.7435,4121.1,4121.0,0.5550967]
[1761637335673,0.7435,4121.1,4121.0,0.8946967]
[1761637339587,0.4247,4121.1,4121.0,0.8946967]
[1761637342184,0.7435,4121.1,4121.0,0.8946967]
[1761637345384,0.4247,4121.1,4121.0,0.8946967]
[1761637346591,1.45188975,4121.3,4121.2,0.7649]
[1761637349789,1.98758975,4121.3,4121.2,0.7649]
[1761637349987,2.53012442,4121.3,4121.2,0.5497]
[1761637350500,2.53012442,4121.3,4121.2,0.3396]
[1761637352893,2.53012442,4121.3,4121.2,0.5497]
[1761637354098,2.28012442,4121.3,4121.2,0.5497]
[1761637355694,2.28012442,4121.3,4121.2,0.7649]
[1761637357898,0.96723467,4121.3,4121.2,0.7649]
[1761637361590,40.8,4121.6,4121.5,0.1248]
[1761637361895,41.68580065,4121.6,4121.5,0.8733]
[1761637362500,41.68580065,4121.6,4121.5,0.7485]
[1761637362701,41.68580065,4121.6,4121.5,0.5227]
[1761637363092,41.68580065,4121.6,4121.1,1.29779267]
[1761637363093,0.229,4121.1,4121.0,1.86238937]
[1761637363794,0.229,4121.1,4121.0,2.17608937]
[1761637364998,40.8,4121.6,4121.0,1.86238937]
[1761637365204,41.1434,4121.6,4121.5,0.8733]
[1761637365403,41.68588364,4121.6,4121.5,0.8733]
[1761637366706,41.34248364,4121.6,4121.5,0.8733]
[1761637369506,0.54248364,4121.6,4121.5,0.8733]
[1761637369809,0.229,4121.6,4121.5,0.8733]
[1761637371596,0.7845,4121.6,4121.5,0.8733]
[1761637373801,0.4411,4121.6,4121.5,0.8733]
[1761637374002,0.7845,4121.6,4121.5,0.8733]
[1761637376712,0.7845,4121.6,4121.5,0.3137]
[1761637377114,0.7845,4121.6,4121.5,0.5227]
[1761637383314,1.32641608,4121.6,4121.5,0.3137]
[1761637384823,1.32641608,4121.6,4121.5,0.5227]
[1761637385621,42.12641608,4121.6,4121.5,0.5227]
[1761637386624,0.7962,4121.4,4121.3,0.7599]
[1761637386820,1.45318975,4121.5,4121.3,0.4368]
[1761637387025,1.45318975,4121.5,4121.4,0.776]
[1761637392028,2.01658975,4122.2,4122.1,0.776]
[1761637392231,2.55879967,4122.2,4122.1,0.776]
[1761637392531,2.55879967,4122.2,4122.1,0.5498]
[1761637393539,2.55879967,4122.2,4122.1,0.51492508]
[1761637395840,2.35133398,4122.2,4122.1,0.51492508]
[1761637399339,2.35133398,4122.2,4122.1,0.3392]
[1761637400446,2.35133398,4122.2,4122.1,0.776]
[1761637400942,2.35133398,4122.2,4122.1,0.5498]
[1761637404339,2.35133398,4122.2,4122.1,0.776]
[1761637404340,0.54220992,4122.2,4122.1,0.776]
[1761637404543,41.83662406,4122.6,4122.4,0.776]
[1761637404544,0.7725,4122.5,4122.4,0.776]
[1761637404849,2.35042057,4122.5,4122.4,0.776]
[1761637406453,2.35042057,4122.5,4122.4,0.5498]
[1761637406950,2.35042057,4122.5,4122.4,0.3392]
[1761637409146,2.35042057,4122.5,4122.4,0.5498]
[1761637413254,1.80912406,4122.5,4122.4,0.776]
[1761637415857,1.46322406,4122.5,4122.4,0.776]
[1761637416755,1.24572406,4122.5,4122.4,0.776]
[1761637416952,1.03662406,4122.5,4122.4,0.776]
[1761637417149,40.8,4122.6,4122.4,0.4368]
[1761637417457,1.25372406,4122.8,4122.7,0.7499]
[1761637417656,1.7942759,4122.8,4122.7,0.7499]
[1761637417955,0.00289477,4122.9,4122.8,0.7499]
[1761637418256,0.7439,4123.7,4123.6,0.5409]
[1761637418558,0.4299,4123.7,4123.6,0.7499]
[1761637418960,41.2299,4123.7,4123.6,0.7499]
[1761637419157,0.43225215,4123.7,4123.6,0.7499]
[1761637419664,0.21945215,4123.7,4123.6,0.7499]
[1761637419961,0.00235215,4123.7,4123.6,0.7499]
[1761637420554,0.00235215,4123.7,4123.6,1.18644]
[1761637421459,0.00235215,4123.7,4123.6,0.7499]
[1761637425051,0.00235215,4123.7,4123.6,1.18644]
[1761637433471,0.00235215,4123.7,4123.6,0.7499]
[1761637434271,0.00235215,4123.7,4123.6,1.18644]
[1761637437072,1e-08,4123.7,4123.6,1.18644]
[1761637438769,1.25372406,4124.4,4124.3,0.4219]
[1761637438969,1.25372406,4124.4,4124.3,0.7499]
[1761637439786,1.25568535,4124.4,4124.3,0.75207548]
[1761637441873,1.78248535,4124.4,4124.3,0.75207548]
[1761637446271,1.46848535,4124.4,4124.3,0.75207548]
[1761637446472,0.00196129,4124.4,4124.3,0.75207548]
[1761637447878,1.03662406,4124.6,4124.5,0.9259]
[1761637447879,0.2224,4124.6,4124.5,0.9259]
[1761637448077,1.25902406,4124.6,4124.5,0.9259]
[1761637448780,1.26210866,4124.6,4124.5,0.9259]
[1761637449383,1.03970866,4124.6,4124.5,0.9259]
[1761637449683,0.0030846,4124.6,4124.5,1.36234]
[1761637449981,1.25902406,4125.0,4124.9,0.7954]
[1761637450182,1.80018194,4125.0,4124.9,0.7954]
[1761637450382,1.25902406,4125.0,4124.9,0.7954]
[1761637450781,1.26126244,4125.0,4124.9,0.7954]
[1761637453288,1.81456244,4125.0,4124.9,0.7954]
[1761637454281,1.81456244,4125.0,4124.9,0.5653]
[1761637455281,0.00223838,4125.0,4124.9,0.7954]
[1761637455680,0.22463838,4125.0,4124.9,0.7954]
[1761637458085,0.77793838,4125.0,4124.9,0.7954]
[1761637463883,0.22463838,4125.0,4124.9,0.7954]
[1761637464987,2.01758644,4125.3,4125.2,0.7954]
[1761637465192,2.01758644,4125.3,4124.5,1.42994675]
[1761637465193,0.2224,4124.9,4124.8,0.4602]
[1761637465684,1.79688644,4125.3,4125.0,0.1305]
[1761637465890,1.79968844,4125.3,4125.2,0.7954]
[1761637466088,2.02038844,4125.3,4125.2,0.7954]
[1761637467483,2.02038844,4125.3,4125.2,0.5653]
[1761637468285,1.68778844,4125.3,4125.2,0.7954]
[1761637470893,1.44362858,4125.3,4125.2,0.7954]
[1761637474793,1.97762858,4125.3,4125.2,0.7954]
[1761637474991,0.4471,4125.1,4124.9,1.63344675]
[1761637475196,0.7604,4124.8,4124.7,0.334]
[1761637475495,2.00228644,4124.8,4124.7,0.334]
[1761637475892,2.00228644,4124.8,4124.7,0.5488]
[1761637476196,2.00228644,4124.8,4124.7,0.7688]
[1761637476398,0.2231,4124.8,4124.7,0.7688]
[1761637476898,0.2231,4124.8,4124.7,2.06824675]
[1761637477288,0.7604,4124.8,4124.7,1.84824675]
[1761637477598,0.7604,4124.8,4124.7,0.5488]
[1761637478100,0.7604,4124.8,4124.7,0.7688]
[1761637480002,0.7604,4124.8,4124.7,0.5488]
[1761637480297,2.00228644,4124.8,4124.7,0.5488]
[1761637482907,2.00228644,4124.8,4124.7,0.7688]
[1761637486207,1.68898644,4124.8,4124.7,0.7688]
[1761637486795,1.46778844,4125.3,4125.2,0.7688]
[1761637486999,2.32322849,4125.3,4125.2,0.7688]
[1761637487204,2.54722849,4125.3,4125.2,0.7688]
[1761637487798,2.23392849,4125.3,4125.2,0.7688]
[1761637488607,2.54722849,4125.3,4125.2,0.7688]
[1761637489001,0.53320637,4125.3,4125.2,0.7688]
[1761637489202,0.7604,4125.3,4125.2,0.7688]
[1761637489407,0.7604,4125.3,4125.2,2.06824675]
[1761637489714,0.7604,4125.3,4125.2,0.7688]
[1761637489715,0.4471,4125.3,4125.2,0.7688]
[1761637490014,0.22599185,4125.3,4125.2,0.7688]
[1761637492314,0.44999185,4125.3,4125.2,0.7688]
[1761637492513,0.76329185,4125.3,4125.2,0.7688]
[1761637494612,0.44999185,4125.3,4125.2,0.7688]
[1761637496014,0.22599185,4125.3,4125.2,0.7688]
[1761637496218,0.76329185,4125.3,4125.2,0.7688]
[1761637498317,0.76329185,4125.3,4125.2,0.334]
[1761637498516,0.76329185,4125.3,4125.2,0.5488]
[1761637499617,0.3133,4125.2,4125.1,0.334]
[1761637499816,2.00228644,4125.2,4125.1,0.334]
[1761637500418,0.7604,4124.9,4124.8,0.334]
[1761637500612,0.7604,4124.8,4124.7,0.334]
[1761637500812,2.00228644,4124.8,4124.7,0.334]
[1761637501018,2.00228644,4125.0,4124.8,0.334]
[1761637501218,0.7604,4124.9,4124.8,0.4348]
[1761637501816,0.7604,4124.9,4124.8,0.7688]
[1761637503524,0.4471,4124.9,4124.8,0.7688]
[1761637503724,0.7604,4124.9,4124.8,0.7688]
[1761637504516,0.4364,4124.5,4124.4,1.63144675]
[1761637504726,0.7721,4124.4,4124.3,0.33417548]
[1761637508723,0.7721,4124.4,4124.3,0.00217548]
[1761637508924,1.50899065,4124.4,4124.3,0.00217548]
[1761637510219,0.4364,4123.6,4123.5,0.332]
[1761637510425,2.01398644,4123.6,4123.5,0.332]
[1761637510823,0.3357,4123.1,4122.8,0.5598]
[1761637511126,0.7721,4122.9,4122.8,0.2278]
[1761637511327,1.24188644,4123.0,4122.8,0.44444478]
[1761637511526,1.45528644,4123.0,4122.9,0.7744]
[1761637513127,1.67828644,4123.0,4122.9,0.7744]
[1761637513727,2.01398644,4123.0,4122.9,0.7744]
[1761637514429,1.67828644,4123.0,4122.9,0.7744]
[1761637515027,40.8,4123.1,4123.0,0.8997]
[1761637515228,0.5491,4123.6,4123.5,0.8997]
[1761637515531,0.2134,4123.6,4123.5,0.8997]
[1761637515728,41.0134,4123.6,4123.5,0.8997]
[1761637516122,0.54322684,4124.1,4123.5,0.5677]
[1761637516434,0.76622684,4124.1,4124.0,0.6851]
[1761637516735,41.56622684,4124.1,4124.0,0.6851]
[1761637517230,0.4364,4124.1,4124.0,0.8997]
[1761637517535,0.2134,4124.1,4124.0,0.8997]
[1761637517728,0.4364,4124.1,4124.0,0.8997]
[1761637518236,0.2134,4124.1,4124.0,0.8997]
[1761637518439,1.24188644,4124.5,4124.2,0.332]
[1761637518632,0.7721,4124.4,4124.3,0.5598]
[1761637518833,0.7721,4124.2,4124.1,0.332]
[1761637519027,2.01398644,4124.2,4124.1,0.332]
[1761637519227,2.01398644,4124.2,4124.1,0.5598]
[1761637519843,1.80765491,4124.2,4124.1,0.5598]
[1761637521546,1.80765491,4124.2,4124.1,0.332]
[1761637522346,40.8,4124.7,4124.1,0.4424]
[1761637522536,0.223,4124.4,4124.3,0.5598]
[1761637522850,1.80765491,4124.4,4124.3,0.5598]
[1761637523546,1.80765491,4124.4,4124.1,0.332]
[1761637523547,0.4364,4124.2,4124.1,0.332]
[1761637523754,0.7721,4123.7,4123.6,0.5598]
[1761637524048,1.80765491,4123.7,4123.6,0.5598]
[1761637524839,1.80765491,4123.7,4123.6,0.7744]
[1761637526355,1.47195491,4123.7,4123.6,0.7744]
[1761637526550,1.24895491,4123.7,4123.6,0.7744]
[1761637526951,1.80505491,4123.7,4123.6,0.7744]
[1761637532955,1.47565491,4123.7,4123.6,0.7744]
[1761637533354,1.80505491,4123.7,4123.6,0.7744]
[1761637534251,1.47565491,4123.7,4123.6,0.7744]
[1761637535658,1.24895491,4123.7,4123.6,0.7744]
[1761637535854,1.81825491,4123.7,4123.6,0.5466]
[1761637536060,1.81825491,4123.7,4123.6,0.5591]
[1761637539063,1.81825491,4123.7,4123.6,0.7772]
[1761637542761,0.55356239,4124.5,4123.7,0.3324]
[1761637543064,2.01197548,4124.4,4124.3,0.7776]
[1761637543265,2.01210879,4124.4,4124.3,0.7776]
[1761637545366,1.46975491,4124.4,4124.3,0.7776]
[1761637546966,1.81555491,4124.4,4124.3,0.7776]
[1761637553266,1.81555491,4124.4,4124.3,0.5595]
[1761637553469,1.81555491,4124.4,4124.3,0.3324]
[1761637553866,0.5565,4124.1,4124.0,0.3324]
[1761637554072,1.81555491,4124.1,4124.0,0.3324]
[1761637554273,1.81555491,4124.1,4124.0,0.5595]
[1761637557178,1.81555491,4124.1,4124.0,0.6971]
[1761637557367,1.46975491,4124.1,4123.8,1.29944675]
[1761637557678,0.78,4124.0,4123.9,0.5595]
[1761637557878,0.78,4124.0,4123.9,0.7776]
[1761637559180,0.4342,4124.0,4123.9,0.7776]
[1761637559382,0.2107,4124.0,4123.9,0.7776]
[1761637559575,0.2107,4124.0,4123.9,2.07704675]
[1761637560269,1.81555491,4124.6,4124.5,0.9152]
[1761637560473,1.46975491,4124.6,4124.5,0.9152]
[1761637560779,1.81555491,4124.6,4124.5,0.9152]
[1761637561679,1.46975491,4124.6,4124.5,0.9152]
[1761637562080,1.81555491,4124.6,4124.5,0.9152]
[1761637562683,1.81555491,4124.6,4124.5,0.3324]
[1761637563176,1.81555491,4124.6,4124.5,0.5595]
[1761637565679,0.3307,4124.2,4124.1,1.29944675]
[1761637565879,0.7686,4124.1,4124.0,0.3219]
[1761637566381,1.03555491,4124.2,4123.4,1.73147155]
[1761637566382,0.3307,4123.7,4123.6,1.29944675]
[1761637566581,1.80415491,4123.7,4123.6,1.62134675]
[1761637566773,1.80415491,4123.7,4123.6,0.5469]
[1761637569086,1.80415491,4123.7,4123.6,0.7737]
[1761637569381,1.47345491,4123.7,4123.6,2.07314675]
[1761637569582,40.8,4123.9,4123.6,1.75124675]
[1761637569886,1.37935491,4124.0,4123.6,1.75124675]
[1761637569887,1.03555491,4124.0,4123.9,0.7846]
[1761637570086,1.24965491,4124.0,4123.9,0.7846]
[1761637575281,1.03555491,4124.0,4123.9,0.7846]
[1761637575593,0.4399,4124.5,4124.4,0.7846]
[1761637576991,0.7837,4124.5,4124.4,0.7846]
[1761637579086,1.47545491,4124.5,4124.4,0.7846]
[1761637579485,1.81925491,4124.5,4124.4,0.7846]
[1761637579878,1.24965491,4124.5,4124.4,0.7846]
[1761637580986,0.2141,4124.5,4124.4,0.7846]
[1761637581185,1.24965491,4124.8,4124.7,0.7846]
[1761637581391,1.79224565,4124.8,4124.7,0.7846]
[1761637581788,0.54259074,4124.8,4124.7,0.7846]
[1761637581992,41.1438,4125.2,4125.1,0.7846]
[1761637582188,42.92840895,4125.2,4125.1,0.7846]
[1761637584697,42.92840895,4125.2,4125.1,0.5578]
[1761637585092,42.92840895,4125.2,4125.1,0.3359]
[1761637585396,0.2141,4124.6,4124.5,0.5735]
[1761637585897,0.2141,4124.6,4124.5,0.9094]
[1761637587395,0.4399,4124.6,4124.5,0.9094]
[1761637587698,0.7837,4124.6,4124.5,0.9094]
[1761637588992,0.4399,4124.6,4124.5,0.9094]
[1761637589291,0.7837,4124.6,4124.5,0.9094]
[1761637590395,0.7837,4124.6,4124.5,0.5578]
[1761637591491,0.3438,4124.5,4124.2,0.5578]
[1761637591696,0.7837,4124.3,4124.2,0.2219]
[1761637591891,0.7837,4124.3,4124.2,0.4487]
[1761637592096,0.7837,4124.3,4124.2,0.7846]
[1761637592597,0.4399,4124.3,4124.2,0.7846]
[1761637593091,0.7837,4124.3,4124.2,0.5578]
[1761637595500,0.7837,4124.3,4124.2,0.7846]
[1761637596796,0.4399,4124.3,4124.2,0.7846]
[1761637597001,0.7672,4124.3,4124.2,0.7846]
[1761637599200,0.3273,4124.2,4123.9,1.61724394]
[1761637599400,0.2296,4124.1,4124.0,0.3138]
[1761637599702,2.01698662,4124.1,4124.0,0.5253]
[1761637600103,2.01698662,4124.1,4124.0,0.3138]
[1761637600492,0.7749,4123.9,4123.6,1.30344394]
[1761637600805,0.7749,4123.8,4123.7,0.5253]
[1761637601705,0.7749,4123.8,4123.7,0.3138]
[1761637602895,0.7749,4123.8,4123.7,0.5253]
[1761637603806,0.7749,4123.8,4123.7,0.3138]
[1761637605100,0.7749,4123.8,4123.7,0.5253]
[1761637606692,0.3273,4123.7,4123.3,1.30344394]
[1761637606897,0.3273,4123.7,4123.0,0.1248]
[1761637606898,0.7749,4123.3,4123.2,0.3138]
[1761637607403,0.7749,4123.3,4123.2,0.752]
[1761637608107,0.7749,4123.3,4123.2,0.5253]
[1761637608309,0.7749,4123.3,4123.2,0.3138]
[1761637608607,0.3273,4123.2,4123.1,0.3138]
[1761637608804,0.7749,4123.2,4123.1,0.3138]
[1761637609202,0.7749,4122.9,4122.8,0.00204478]
[1761637609509,2.01698662,4122.9,4122.8,0.00204478]
[1761637609899,42.81698662,4122.9,4122.8,0.31584478]
[1761637612604,42.81698662,4122.9,4122.8,0.52734478]
[1761637614407,42.81698662,4122.9,4122.8,0.31584478]
[1761637618097,42.81698662,4122.9,4122.8,0.00204478]
[1761637618603,0.4463,4122.0,4121.7,1.30344394]
[1761637618807,0.218,4121.7,4121.6,0.752]
[1761637619399,41.018,4121.7,4121.6,0.752]
[1761637619599,41.02050382,4121.7,4121.6,0.75461762]
[1761637620411,0.00250382,4121.7,4121.6,0.75461762]
[1761637620900,0.00250382,4121.7,4121.6,1.19136762]
[1761637621608,0.00250382,4121.7,4121.6,0.75461762]
[1761637623605,0.00250382,4121.7,4121.6,1.19136762]
[1761637623909,0.00250382,4121.7,4121.6,9.19136762]